Cogmind - Beta 10.2 @@@ ROGUE MODE // 2021.05.18 @ 19:32:20 Player: sentrybuster Result: Core destroyed Performance ------------- Evolutions (9) 4500 Regions Visited (21) 4200 Robots Destroyed (121) 605 Value Destroyed (5488) 5488 Prototype IDs (70) 1400 Alien Tech Used (0) 0 Bonus (13638) 13638 TOTAL SCORE: 29831 Bonus ------- High Alert Combat Kills 207 Follower Combat Kills 211 Aligned with FarCom 300 Met Data Miner 300 Met Warlord at Base 500 MAIN.C Attacked Warlord 500 Warlord Defense Kill 130 Met Warlord at Research 2000 Invited to Help at Command 2000 Destroyed MAIN.C Guards 500 Met MAIN.C 5000 Met Warlord at Command 2000 Friendly Fire -10 Cogmind --------- Core Integrity 0/1600 Matter 300/300 Energy 100/100 System Corruption 51% Temperature Cool (0) Movement Core (50) Location -1/Command Parts ------- > --- POWER (2) -------- (None) > --- PROPULSION (7) --- (None) > --- UTILITY (13) ----- Experimental Signal Interpreter Improved Hacking Suite Advanced Component Analysis Suite > --- WEAPON (3) ------- (None) > --- INVENTORY (4) ---- Advanced Kinecellerator Peak State ------------ > --- POWER ------------ Light Quantum Reactor Light Quantum Reactor > --- PROPULSION ------- Combat Antigrav System Antigrav Array Antigrav Array Antigrav Array > --- UTILITY ---------- Advanced Cooling System Large Storage Unit Large Storage Unit Spectral Analyzer Experimental Signal Interpreter Advanced Reaction Control System Layered Heavy Armor Plating Advanced Force Field Makeshift Hacking Suite Improved Hacking Suite Advanced System Shield Advanced Component Analysis Suite > --- WEAPON ----------- Enhanced Quantum Rifle Enhanced Nova Cannon Linear Accelerator > --- INVENTORY -------- Vortex Chain Reactor Improved Gyrokinetic Inverter Antigrav Array Experimental Focal Shield Antimissile System Precision Phase Gun Improved Proton Missile Launcher Gamma Bomb Array Mini Smartbomb Launcher Mini Smartbomb Launcher Improved Remote Datajack Ionic Axe Enhanced Force Lance [Rating: 186] Favorites ----------- Power Neutrino Core Engine Light Ion Engine Power Core Neutrino Core Reactor Vortex Chain Reactor Propulsion Antigrav Array Leg Aluminum Leg Hover Unit Antigrav Array Flight Unit Flying Fortress v7 Utility Large Storage Unit Device Advanced Component Analysis Suite Storage Large Storage Unit Processor Experimental Signal Interpreter Hackware Improved Hacking Suite Protection Improved Propulsion Shielding Weapon Enhanced Quantum Rifle Energy Gun Enhanced Quantum Rifle Energy Cannon Enhanced Nova Cannon Ballistic Gun Heavy Machine Gun Ballistic Cannon Gauss Cannon Launcher Mini Smartbomb Launcher Special Weapon Mining Laser Impact Weapon Heavy Mace Slashing Weapon Power Sword Piercing Weapon Enhanced Force Lance Build | -11 -10 -10 -10 -9 -8 -7 -6 -6 -6 -6 -5 -5 -5 -5 -5 -4 -4 -3 -2 -1 -1 ------- Run | Scr Mat Min Exi Min Mat Fac Fac Low Low Dat Pro Fac Upp Upp War Pro Fac Res Res Acc Com Slots Evolved 18 | . . . . . 4 2 2 . . . . 2 . . . . 2 2 2 2 . Power 1 | . . . . . . . . . . . . 1 . . . . . . . . . Propulsion 5 | . . . . . 2 1 1 . . . . . . . . . . . . 1 . Utility 11 | . . . . . 1 1 1 . . . . 1 . . . . 2 2 2 1 . Weapon 1 | . . . . . 1 . . . . . . . . . . . . . . . . Parts Attached 183 | 6 3 9 1 . 8 19 19 3 1 . 1 7 4 8 13 1 6 14 10 25 25 Power 20 | 1 . 1 . . 1 2 2 . . . . 1 . . 1 . . . . 7 4 Engine 3 | 1 . 1 . . 1 . . . . . . . . . . . . . . . . Core 5 | . . . . . . 2 2 . . . . 1 . . . . . . . . . Reactor 12 | . . . . . . . . . . . . . . . 1 . . . . 7 4 Propulsion 35 | 2 . 3 . . 1 2 4 . . . . . 1 4 5 . . . 4 4 5 Treads . | . . . . . . . . . . . . . . . . . . . . . . Leg 8 | 2 . 3 . . . . . . . . . . . 1 2 . . . . . . Wheel . | . . . . . . . . . . . . . . . . . . . . . . Hover 13 | . . . . . . . . . . . . . . . 1 . . . 3 4 5 Flight 14 | . . . . . 1 2 4 . . . . . 1 3 2 . . . 1 . . Utility 51 | 1 1 1 . . 1 8 4 1 . . 1 2 3 2 2 . 3 5 2 7 7 Device 24 | . . 1 . . 1 4 1 1 . . 1 . 1 . . . 1 3 2 4 4 Storage 4 | 1 . . . . . 2 1 . . . . . . . . . . . . . . Processor 7 | . 1 . . . . 2 1 . . . . 1 . . 1 . . . . . 1 Hackware 7 | . . . . . . . 1 . . . . . 1 . . . 2 1 . 1 1 Protection 9 | . . . . . . . . . . . . 1 1 2 1 . . 1 . 2 1 Artifact . | . . . . . . . . . . . . . . . . . . . . . . Weapon 77 | 2 2 4 1 . 5 7 9 2 1 . . 4 . 2 5 1 3 9 4 7 9 Energy Gun 22 | 1 1 1 . . 1 2 1 . . . . 1 . . 2 1 1 4 1 3 2 Energy Cannon 6 | . . . . . 1 1 . . . . . 2 . . . . . . 1 1 . Ballistic Gun 14 | 1 1 2 . . . 1 4 1 . . . . . 1 . . 1 2 . . . Ballistic Cannon 8 | . . . . . . 3 1 . . . . 1 . . . . . 1 . 2 . Launcher 14 | . . . . . 2 . 2 1 1 . . . . . 1 . 1 1 . . 5 Special Weapon 7 | . . 1 1 . . . . . . . . . . 1 1 . . . 2 . 1 Impact Weapon 1 | . . . . . 1 . . . . . . . . . . . . . . . . Slashing Weapon 2 | . . . . . . . 1 . . . . . . . . . . . . . 1 Piercing Weapon 3 | . . . . . . . . . . . . . . . 1 . . 1 . 1 . Special Melee Weapon . | . . . . . . . . . . . . . . . . . . . . . . Unidentified Prototypes 18 | . . . . . 3 1 . . . . . . . 1 6 . 3 . 1 2 1 Parts Lost 66 | . 2 4 . . . . 4 . 1 . . 1 . 1 . . . 3 . 15 35 Power 11 | . . 1 . . . . . . . . . . . . . . . . . 4 6 Propulsion 13 | . . . . . . . 1 . . . . 1 . . . . . . . 2 9 Utility 22 | . 1 . . . . . . . 1 . . . . . . . . 3 . 6 11 Weapon 20 | . 1 3 . . . . 3 . . . . . . 1 . . . . . 3 9 Highest Loss Streak 19 | . 1 3 . . . . 2 . 1 . . 1 . 1 . . . 2 . 9 19 Average Slot Usage (%) 75 | . 90 88 92 100 69 75 77 80 75 73 76 80 79 81 78 67 77 76 71 79 50 Engine 2 | . 14 12 14 14 9 1 . . . . . . . . . . . . . . . Core 2 | . . . . . . 5 6 6 6 6 6 11 11 11 6 . . . . . . Reactor 2 | . . . . . . . . . . . . . . . 1 5 5 4 4 5 4 Leg 4 | . 28 28 28 28 . . . . . . . . . . . . . . . . . Hover 4 | . . . . . . . . . . . . . . . . . . . 10 15 12 Flight 7 | . . . . . 9 14 18 20 20 20 20 15 14 17 16 17 15 14 2 . . Device 8 | . . 13 14 14 17 8 6 6 1 . 3 1 3 . . . 2 7 12 14 6 Storage 9 | . 14 14 14 14 9 7 10 13 13 13 13 11 11 11 11 11 10 9 8 8 3 Processor 8 | . 5 . . . . 13 12 6 6 6 6 11 11 11 12 11 10 9 8 8 8 Hackware 5 | . . . . . . . 2 6 6 6 6 5 5 5 5 5 12 13 13 11 7 Protection 1 | . . . . . . . . . . . . 3 1 5 3 5 5 3 4 4 1 Energy Gun 5 | . 7 13 14 14 9 4 4 . . . . 5 5 . 2 1 5 3 3 4 1 Energy Cannon 2 | . . . . . 6 3 1 . . . . 4 5 5 4 . . . 3 3 . Ballistic Gun 3 | . 20 4 . . . 1 8 12 10 6 6 . . 4 2 . 4 2 . . . Ballistic Cannon 1 | . . . . . . 6 2 . . . . . . . . . . 1 . 1 . Naked Turns . | . . . . . . . . . . . . . . . . . . . . . . Heaviest Build 133 | 10 12 13 12 12 29 42 63 64 62 62 66 80 77 82 88 81 87 94 109 133 118 Greatest Support 138 | 20 20 20 20 20 72 79 88 88 88 88 88 88 80 89 89 89 89 89 108 138 136 Greatest Overweight (x) 4 | . . . . . . . . . . . . . . . 1 . . 1 4 1 1 Average Overweight (x) . | . . . . . . . . . . . . . . . . . . . . . . Largest Inventory Capacity 16 | 6 6 6 6 6 6 10 16 16 16 16 16 16 16 16 16 16 16 16 16 16 16 Average Capacity 11 | 5 6 6 6 6 6 6 14 16 16 16 16 16 16 16 16 16 16 16 16 16 8 Most Carried 16 | 4 6 6 6 6 6 10 16 16 16 16 16 16 16 16 16 15 16 16 16 16 15 Average Carried 10 | 1 4 4 5 6 5 6 13 16 16 16 15 14 15 15 15 14 15 14 15 15 6 Final Capacity 16 | 6 6 6 6 6 6 10 16 16 16 16 16 16 16 16 16 16 16 16 16 16 4 Final Carried 16 | 4 6 4 6 6 6 10 16 16 16 16 15 16 16 16 14 15 16 13 16 14 1 Class Distribution -------------------- 48% | Mutant 33% | Hacker-Mutant 10% | Scavenger-Mutant 5% | Gunner Dominant Class ---------------- Mutant | -10/Materials Mutant | -10/Mines Scavenger-Mutant | -10/Exiles Scavenger-Mutant | -9/Mines Mutant | -8/Materials Mutant | -7/Factory Mutant | -6/Factory Mutant | -6/Lower Caves Mutant | -6/Lower Caves Mutant | -6/Data Miner Mutant | -5/Proximity Caves Mutant | -5/Factory Mutant | -5/Upper Caves Mutant | -5/Upper Caves Mutant | -5/Warlord Mutant | -4/Proximity Caves Hacker-Mutant | -4/Factory Hacker-Mutant | -3/Research Hacker-Mutant | -2/Research Hacker-Mutant | -1/Access Hacker-Mutant | -1/Command Resources | -11 -10 -10 -10 -9 -8 -7 -6 -6 -6 -6 -5 -5 -5 -5 -5 -4 -4 -3 -2 -1 -1 ----------- Run | Scr Mat Min Exi Min Mat Fac Fac Low Low Dat Pro Fac Upp Upp War Pro Fac Res Res Acc Com Matter Collected 4090 | 187 190 151 . . 115 527 444 42 86 . 17 54 239 114 154 10 237 183 414 395 531 Remotely . | . . . . . . . . . . . . . . . . . . . . . . Salvage Created 5082 | . 336 142 . . 331 860 897 39 48 . 40 54 266 184 50 . 368 231 288 630 318 Parts 246 | . 10 5 . . 21 39 30 4 9 . 4 1 8 6 1 . 12 6 11 56 23 Haulers Intercepted 6 | . . . . . . 2 3 . . . . . . . . . . . 1 . . Recyclers Shooed 4 | . . . . . . . . . . . . . . . . . . 3 1 . . Parts Field Recycled . | . . . . . . . . . . . . . . . . . . . . . . Retrieved Matter . | . . . . . . . . . . . . . . . . . . . . . . Parts Self-Destructed 73 | . . . . . . . . 3 8 . 4 . 14 11 33 . . . . . . Prevented 7 | . . . . . . . . . . . . . . . 7 . . . . . . Kills | -11 -10 -10 -10 -9 -8 -7 -6 -6 -6 -6 -5 -5 -5 -5 -5 -4 -4 -3 -2 -1 -1 ------- Run | Scr Mat Min Exi Min Mat Fac Fac Low Low Dat Pro Fac Upp Upp War Pro Fac Res Res Acc Com Combat Hostiles Destroyed 94 | . 6 9 . . 5 13 9 4 4 . 3 1 5 3 2 . 8 6 . 10 6 Melee 9 | . . . . . . . . . . . . . . . . . . . . 6 3 Guns 32 | . 6 9 . . 1 2 3 1 . . . . 4 1 2 . 2 1 . . . Cannons 23 | . . . . . 2 11 2 . . . . 1 1 2 . . . . . 4 . AOE 26 | . . . . . 1 . 4 3 4 . 3 . . . . . 6 5 . . . Classes Destroyed 15 | . 3 1 . . 4 5 . . . . . . . . 1 . . . . . 1 Worker 2 | . . . . . . 1 . . . . . . . . . . . . 1 . . Builder 5 | . . . . . 1 . 2 . . . . . . . . . . . 1 1 . Tunneler 3 | . . . . . 1 1 . . . . . . . . . . 1 . . . . Hauler 6 | . . . . . . 2 3 . . . . . . . . . . . 1 . . Recycler 8 | . 1 . . . 1 2 2 . . . . . . . . . . 1 1 . . Operator 4 | . . . . . 1 . 2 . . . . . . . . . . . . . 1 Watcher 5 | . 1 . . . 1 2 . . . . . . . . . . 1 . . . . Swarmer 27 | . . . . . 2 . 7 4 4 . 3 . 2 . . . . 5 . . . Saboteur 1 | . . . . . . . . . . . . . . . 1 . . . . . . Grunt 28 | . 6 3 . . 3 4 1 . . . . . 3 1 1 . 6 . . . . Brawler 2 | . . . . . . 1 . . . . . . . . . . 1 . . . . Sentry 9 | . . . . . . 4 1 . . . . 1 . 1 . . 1 1 . . . Hunter 1 | . . . . . . . . . . . . . . . . . . . . . 1 Programmer 18 | . . . . . . 4 . . . . . . . 1 . . . . . 10 3 M Guard 2 | . . . . . . . . . . . . . . . . . . . . . 2 Assembled 6 | . . 6 . . . . . . . . . . . . . . . . . . . Best Kill Streak 6 | . 4 5 . . 3 3 6 3 4 . 3 1 2 2 1 . 5 5 2 4 2 Combat Bots Only 5 | . 4 5 . . 2 2 3 3 4 . 3 1 2 2 1 . 4 5 . 3 2 Max Kills in Single Turn 4 | . 1 1 . . 1 2 3 3 4 . 3 1 1 1 1 . 3 3 1 1 1 Gunslinging . | . . . . . . . . . . . . . . . . . . . . . . Exploded 4 | . . . . . 1 . 2 3 4 . 3 . . . . . 3 3 . . . Melee 1 | . . . . . . . . . . . . . . . . . . . . 1 1 Uniques/NPCs Destroyed . | . . . . . . . . . . . . . . . . . . . . . . Combat | -11 -10 -10 -10 -9 -8 -7 -6 -6 -6 -6 -5 -5 -5 -5 -5 -4 -4 -3 -2 -1 -1 -------- Run | Scr Mat Min Exi Min Mat Fac Fac Low Low Dat Pro Fac Upp Upp War Pro Fac Res Res Acc Com Damage Taken 12238 | . 314 562 . . 458 366 722 111 236 . 45 110 128 219 364 63 179 658 . 3372 4331 Core 2216 | . 104 89 . . 75 19 102 . . . . . . 18 93 63 38 14 . 485 1116 Absorbed by Shields 436 | . . . . . . . . . . . 17 . . . . . . . . 419 . Core Remaining (%) 85 | 100 . . . 22 86 97 . . . . 88 . . . . 82 96 98 100 . . Volleys Fired 511 | . 29 48 . . 20 89 39 10 1 . 2 7 13 11 24 . 31 61 31 66 29 Largest 3 | . 2 2 . . 2 3 3 2 1 . 2 1 2 2 2 . 2 2 2 3 2 Hottest 280 | . 85 100 . . 168 198 158 45 43 . 73 61 170 170 80 . 110 110 214 280 123 Shots Fired 730 | . 56 67 . . 32 138 80 15 1 . 4 7 17 19 29 . 41 70 35 90 29 Gun 409 | . 56 59 . . 12 45 53 11 . . 2 . 13 10 13 . 33 64 9 13 16 Cannon 265 | . . . . . 13 93 23 . . . . 7 4 9 12 . . 3 24 77 . Launcher 43 | . . . . . 5 . 4 4 1 . 2 . . . 4 . 8 3 . . 12 Special 13 | . . 8 . . 2 . . . . . . . . . . . . . 2 . 1 Kinetic 305 | . 39 27 . . . 78 43 11 . . 2 7 . 7 . . 23 38 . 30 . Thermal 320 | . 17 40 . . 18 60 27 . . . . . 17 12 12 . 3 23 33 58 . Explosive 24 | . . . . . . . 2 4 1 . 2 . . . . . 8 3 . . 4 Electromagnetic 52 | . . . . . 14 . 8 . . . . . . . 4 . . . . 2 24 Entropic 26 | . . . . . . . . . . . . . . . 13 . 7 6 . . . Robot Hit Streak 11 | . 7 9 . . 4 10 10 3 3 . 2 9 11 7 5 . 9 9 3 4 11 Robot Miss Streak 6 | . 3 5 . . 3 6 3 5 . . 1 . 2 2 1 . 2 3 3 4 2 Penetration Max 1 | . . . . . . 1 . . . . . . . . . . . . . . . Secondary Targets 6 | . 1 2 . . . . 2 . . . . . . . 1 . . . . . . Max Gunslinging Chain 1 | . 1 1 . . . . 1 . . . . . . . 1 . . . . . . Shots Hit Robots 409 | . 37 46 . . 29 68 40 3 1 . 2 7 13 14 11 . 19 28 12 44 35 Core Hits 254 | . 16 40 . . 16 28 28 4 4 . 3 2 8 6 7 . 28 12 7 15 30 Critical Hits 24 | . 2 . . . 1 6 4 . . . . 2 . . . . 1 . 1 3 4 Critical Kills 12 | . . . . . 1 3 4 . . . . 1 . . . . . . 1 1 1 Critical Parts Destroyed 8 | . 2 . . . . 2 . . . . . . . . . . 1 . . 2 1 Melee Attacks 107 | . . . . . 27 2 4 . . . . . . . . . . 3 . 41 30 Impact 29 | . . . . . 27 2 . . . . . . . . . . . . . . . Slashing 21 | . . . . . . . 4 . . . . . . . . . . . . . 17 Piercing 54 | . . . . . . . . . . . . . . . . . . . . 41 13 Entropic 3 | . . . . . . . . . . . . . . . . . . 3 . . . Sneak Attacks 3 | . . . . . . . 1 . . . . . . . . . . . . . 2 Combat Hostiles . | . . . . . . . . . . . . . . . . . . . . . . Follow-up Attacks . | . . . . . . . . . . . . . . . . . . . . . . Damage Inflicted 15618 | . 474 556 . . 881 2023 1327 340 249 . 253 109 325 458 643 . 1659 1463 576 2334 1948 Guns 4639 | . 474 554 . . 87 643 480 62 . . 23 . 218 207 285 . 381 710 145 216 154 Cannons 3878 | . . . . . 144 1380 265 . . . . 109 107 251 . . . . 431 1191 . Explosions 4648 | . . . . . 347 . 435 278 249 . 230 . . . 358 . 1278 749 . . 724 Melee 2383 | . . . . . 279 . 147 . . . . . . . . . . . . 893 1064 Ramming 46 | . . 2 . . . . . . . . . . . . . . . 4 . 34 6 Kinetic 3165 | . 313 251 . . . 1001 366 62 . . 23 109 . 160 . . 174 371 . 335 . Thermal 4459 | . 161 303 . . 205 1022 328 . . . . . 325 298 . . 20 149 576 1072 . Explosive 3393 | . . . . . . . 223 278 249 . 230 . . . . . 1278 749 . . 386 Electromagnetic 1510 | . . . . . 397 . 263 . . . . . . . 358 . . . . . 492 Impact 279 | . . . . . 279 . . . . . . . . . . . . . . . . Slashing 966 | . . . . . . . 147 . . . . . . . . . . . . . 819 Piercing 1138 | . . . . . . . . . . . . . . . . . . . . 893 245 Entropic 662 | . . . . . . . . . . . . . . . 285 . 187 190 . . . Highest Corruption 51 | . . 2 2 2 . 4 1 1 1 1 1 . . 3 3 . 1 6 . 38 51 Average Corruption 14 | . . 2 2 2 . 2 1 1 1 1 1 . . 2 3 . 1 2 . 17 42 Corruption Purged . | . . . . . . . . . . . . . . . . . . . . . . Effects 304 | . . . 4 . . 11 1 2 . . 1 . . 2 . . 1 5 . 95 182 Message Errors 46 | . . . . . . 2 . . . . . . . . . . . 1 . 16 27 Matter Fused 37 | . . . . . . . . . . . . . . 1 . . . 2 . 12 22 Heat Flow Errors 19 | . . . 1 . . 1 . . . . . . . . . . . . . 9 8 Energy Discharges 16 | . . . 3 . . . . . . . 1 . . . . . . 1 . 4 7 Parts Rejected 3 | . . . . . . . . . . . . . . . . . . . . . 3 Data Loss (minor) 16 | . . . . . . 4 1 . . . . . . . . . . 1 . 6 4 Data Loss (major) 3 | . . . . . . . . . . . . . . . . . . . . 1 2 Misfires 3 | . . . . . . . . . . . . . . . . . . . . 2 1 Alerts 6 | . . . . . . . . . . . . . . . . . . . . . 6 Misdirections 104 | . . . . . . . . . . . . . . . . . . . . 24 80 Targeting Errors 46 | . . . . . . 4 . 1 . . . . . 1 . . 1 . . 19 20 Weapon Failures 5 | . . . . . . . . 1 . . . . . . . . . . . 2 2 Overload Shots 9 | . . . . . . 4 . . . . . . 2 3 . . . . . . . Effects 1 | . . . . . . 1 . . . . . . . . . . . . . . . Heat Surge 1 | . . . . . . 1 . . . . . . . . . . . . . . . Overflow Damage 620 | . . . . . 50 58 80 . . . . . . 42 4 . 48 19 59 122 138 Projectiles 263 | . . . . . . 58 . . . . . . . 42 . . . . 59 104 . Explosions 99 | . . . . . 25 . 3 . . . . . . . 4 . 48 19 . . . Melee 258 | . . . . . 25 . 77 . . . . . . . . . . . . 18 138 Knockbacks 12 | . . . . . 3 4 . . . . . . . . . . . . . 5 . Impact 3 | . . . . . 3 . . . . . . . . . . . . . . . . Kinetic 7 | . . . . . . 4 . . . . . . . . . . . . . 3 . Secondary 2 | . . . . . . . . . . . . . . . . . . . . 2 . Self-Inflicted Damage 34 | . . 1 . . . . 8 . . . . . . . . . . 2 . 17 6 Shots 1 | . . . . . . . 1 . . . . . . . . . . . . . . Rammed 4 | . . 1 . . . . . . . . . . . . . . . 2 . 1 . Targets Rammed 4 | . . 1 . . . . . . . . . . . . . . . 2 . 1 . Kicked . | . . . . . . . . . . . . . . . . . . . . . . Crushed . | . . . . . . . . . . . . . . . . . . . . . . Highest Temperature 411 | . 72 228 132 . 148 302 102 15 36 . 12 224 320 101 135 1 262 3 54 411 213 Average Temperature 77 | . 17 70 76 . 44 80 34 7 15 . 7 119 96 46 68 1 95 3 14 133 45 Received Heat Transfer 1102 | . 180 285 . . 117 60 114 . 84 . . . 33 6 72 9 12 45 . 4 81 Effects 7 | . . . . . . . . . . . . . . . . . . . . 7 . Shutdowns 2 | . . . . . . . . . . . . . . . . . . . . 2 . Interference 5 | . . . . . . . . . . . . . . . . . . . . 5 . Siege Activations . | . . . . . . . . . . . . . . . . . . . . . . Robots Corrupted 4 | . . . . . 1 . . . . . . . . . . . . . . . 3 Combat Hostiles 4 | . . . . . 1 . . . . . . . . . . . . . . . 3 Parts Fried 4 | . . . . . 1 . 2 . . . . . . . . . . . . . 1 Impact Corruptions 3 | . . . . . 3 . . . . . . . . . . . . . . . . Robots Melted . | . . . . . . . . . . . . . . . . . . . . . . Combat Hostiles . | . . . . . . . . . . . . . . . . . . . . . . Parts Melted 7 | . . . . . . 1 . . . . . . 1 . . . . . 1 3 1 Heat Transferred 5117 | . 310 385 . . 354 1104 520 . . . . . 457 322 . . 37 259 555 814 . Parts Sabotaged . | . . . . . . . . . . . . . . . . . . . . . . Parts Stolen . | . . . . . . . . . . . . . . . . . . . . . . Parts Stripped . | . . . . . . . . . . . . . . . . . . . . . . Power Chain Reactions 1 | . . . . . . . 1 . . . . . . . . . . . . . . Missiles Intercepted 3 | . . . . . . . . . . . . . . . . . . . . . 3 Alert | -11 -10 -10 -10 -9 -8 -7 -6 -6 -6 -6 -5 -5 -5 -5 -5 -4 -4 -3 -2 -1 -1 ------- Run | Scr Mat Min Exi Min Mat Fac Fac Low Low Dat Pro Fac Upp Upp War Pro Fac Res Res Acc Com Peak Influence 815 | . 172 86 . . 414 815 385 . . . . 81 . . . . 550 499 345 129 210 Initial 383 | . . 1 . . . 188 383 . . . . 54 . . . . . 288 272 3 82 Average 140 | . 71 37 . . 101 315 188 . . . . 58 . . . . 224 412 172 28 69 Maximum Alert Level 3 | . . . . . 2 3 1 . . . . . . . . . 2 2 1 . 1 Low Security (%) 77 | 100 100 100 . 100 88 48 60 . . . . 100 . . . . 40 . 62 100 98 Level 1 16 | . . . . . 11 28 39 . . . . . . . . . 53 41 37 . 1 Level 2 2 | . . . . . . 1 . . . . . . . . . . 5 58 . . . Level 3 3 | . . . . . . 21 . . . . . . . . . . . . . . . Level 4 . | . . . . . . . . . . . . . . . . . . . . . . Level 5 . | . . . . . . . . . . . . . . . . . . . . . . High Security . | . . . . . . . . . . . . . . . . . . . . . . Max Security . | . . . . . . . . . . . . . . . . . . . . . . Squads Dispatched 31 | . 1 . . . 3 5 7 . . . . . . . . . 1 1 1 6 6 Investigation 8 | . 1 . . . . . 3 . . . . . . . . . 1 1 . 1 1 Extermination 11 | . . . . . . 3 1 . . . . . . . . . . . . 4 3 Reinforcement 11 | . . . . . 3 1 3 . . . . . . . . . . . 1 1 2 Assault 1 | . . . . . . 1 . . . . . . . . . . . . . . . Garrison . | . . . . . . . . . . . . . . . . . . . . . . Intercept . | . . . . . . . . . . . . . . . . . . . . . . Construction Impeded 1 | . . . . . . . . . . . . . . . . . . . 1 . . Haulers Reinforced . | . . . . . . . . . . . . . . . . . . . . . . Stealth | -11 -10 -10 -10 -9 -8 -7 -6 -6 -6 -6 -5 -5 -5 -5 -5 -4 -4 -3 -2 -1 -1 --------- Run | Scr Mat Min Exi Min Mat Fac Fac Low Low Dat Pro Fac Upp Upp War Pro Fac Res Res Acc Com Distress Signals 18 | . . . . . 7 . 1 . . . . . . . . . . . 3 2 5 Communications Jammed 28 | . . . . . 28 . . . . . . . . . . . . . . . . Distress Signals 28 | . . . . . 28 . . . . . . . . . . . . . . . . Times Spotted 238 | . 9 16 . . 34 27 22 4 9 . 4 . 6 4 27 3 14 7 5 19 28 Peak Tracking Total 12 | . 4 6 . . 5 6 5 4 7 . 3 1 3 3 12 4 4 5 2 6 6 Tactical Retreats 34 | . 1 4 . . 8 . 8 . 4 . . . 1 . . . . . . 5 3 Traps | -11 -10 -10 -10 -9 -8 -7 -6 -6 -6 -6 -5 -5 -5 -5 -5 -4 -4 -3 -2 -1 -1 ------- Run | Scr Mat Min Exi Min Mat Fac Fac Low Low Dat Pro Fac Upp Upp War Pro Fac Res Res Acc Com Traps Triggered 7 | . 1 . . . . 1 2 . . . . . . . . . 1 . . 1 1 Indirectly . | . . . . . . . . . . . . . . . . . . . . . . Trap Hack Attempts . | . . . . . . . . . . . . . . . . . . . . . . Triggered . | . . . . . . . . . . . . . . . . . . . . . . Disarmed . | . . . . . . . . . . . . . . . . . . . . . . Reprogrammed . | . . . . . . . . . . . . . . . . . . . . . . Reused . | . . . . . . . . . . . . . . . . . . . . . . Traps Extracted . | . . . . . . . . . . . . . . . . . . . . . . Installed . | . . . . . . . . . . . . . . . . . . . . . . Triggered 14 | . . . . . 1 . 1 . . . . . . . 7 . . . . . 5 Machines | -11 -10 -10 -10 -9 -8 -7 -6 -6 -6 -6 -5 -5 -5 -5 -5 -4 -4 -3 -2 -1 -1 ---------- Run | Scr Mat Min Exi Min Mat Fac Fac Low Low Dat Pro Fac Upp Upp War Pro Fac Res Res Acc Com Machines Disabled 21 | . . . . . 1 2 10 . . . . . . . . . 5 . 1 . 2 Max in Single Turn 4 | . . . . . 1 1 3 . . . . . . . . . 4 . 1 . 1 Garrison Access 5 | . . . . . . 1 2 . . . . . . . . . . . 1 1 . Machines Sabotaged . | . . . . . . . . . . . . . . . . . . . . . . Garrisons Compromised . | . . . . . . . . . . . . . . . . . . . . . . Overloaded Fab Kills . | . . . . . . . . . . . . . . . . . . . . . . Fab Network Shutdowns 1 | . . . . . . 1 . . . . . . . . . . . . . . . Hacking | -11 -10 -10 -10 -9 -8 -7 -6 -6 -6 -6 -5 -5 -5 -5 -5 -4 -4 -3 -2 -1 -1 --------- Run | Scr Mat Min Exi Min Mat Fac Fac Low Low Dat Pro Fac Upp Upp War Pro Fac Res Res Acc Com Machines Accessed 61 | . 4 . 1 . 4 15 19 . . 3 . 1 . 1 1 1 1 1 1 3 5 Terminals 33 | . 4 . . . 3 5 11 . . . . . . 1 . 1 1 1 . 2 4 Fabricators 6 | . . . . . . 4 1 . . . . 1 . . . . . . . . . Repair Stations . | . . . . . . . . . . . . . . . . . . . . . . Recycling Units 10 | . . . . . 1 3 4 . . . . . . . . . . . 1 . 1 Scanalyzers 1 | . . . . . . 1 . . . . . . . . . . . . . . . Garrison Access 6 | . . . . . . 2 3 . . . . . . . . . . . . 1 . Total Hacks 155 | . 12 . 1 . 13 35 43 . . 18 . 1 . 1 1 1 6 2 1 10 10 Successful 88 | . 6 . 1 . 9 20 22 . . 18 . . . 1 1 1 2 . 1 2 4 Failed 67 | . 6 . . . 4 15 21 . . . . 1 . . . . 4 2 . 8 6 Catastrophic 12 | . . . . . . 3 3 . . . . 1 . . . . 2 1 . . 2 Database Lockouts . | . . . . . . . . . . . . . . . . . . . . . . Manual 68 | . 12 . 1 . 12 9 23 . . . . . . . 1 . 3 . . 6 1 Terminals 93 | . 12 . . . 12 13 31 . . . . . . 1 . 1 6 2 . 7 8 Fabricators 8 | . . . . . . 6 1 . . . . 1 . . . . . . . . . Repair Stations . | . . . . . . . . . . . . . . . . . . . . . . Recycling Units 16 | . . . . . 1 6 6 . . . . . . . . . . . 1 . 2 Scanalyzers 6 | . . . . . . 6 . . . . . . . . . . . . . . . Garrison Access 12 | . . . . . . 4 5 . . . . . . . . . . . . 3 . Terminal Hacks 53 | . 1 . 1 . 5 5 13 . . 18 . . . 1 1 1 2 . . 1 4 Record 9 | . . . . . . . . . . 6 . . . 1 . 1 . . . . 1 Part Schematic 5 | . . . . . . . . . . 5 . . . . . . . . . . . Robot Schematic 4 | . . . . . . . . . . 4 . . . . . . . . . . . Prototype ID Bank 5 | . . . . . . . 1 . . 3 . . . . . . 1 . . . . Open Door 1 | . . . . . . . . . . . . . . . 1 . . . . . . Level Access Points 1 | . . . . . . . . . . . . . . . . . 1 . . . . Branch Access Points 1 | . . . . . . . 1 . . . . . . . . . . . . . . Emergency Access Points 2 | . . . . . . 1 1 . . . . . . . . . . . . . . Machine Index 1 | . . . . . . . 1 . . . . . . . . . . . . . . Terminal Index 4 | . . . . . 1 1 . . . . . . . . . . . . . 1 1 Alert Level 3 | . . . . . 1 . 2 . . . . . . . . . . . . . . Unreport Threat 3 | . . . . . . . 3 . . . . . . . . . . . . . . Locate Traps 2 | . . . . . . . 2 . . . . . . . . . . . . . . Recall Investigation 1 | . . . . . . . 1 . . . . . . . . . . . . . . Hauler Manifests 3 | . . . . . 1 2 . . . . . . . . . . . . . . . Registered Components 1 | . . . . . . . 1 . . . . . . . . . . . . . . Zone Layout 4 | . 1 . . . 2 1 . . . . . . . . . . . . . . . EX-Prototype ID Bank 1 | . . . 1 . . . . . . . . . . . . . . . . . . Disengage Seal 2 | . . . . . . . . . . . . . . . . . . . . . 2 Fabricator Hacks 5 | . . . . . . 4 1 . . . . . . . . . . . . . . Build 5 | . . . . . . 4 1 . . . . . . . . . . . . . . Repair Station Hacks . | . . . . . . . . . . . . . . . . . . . . . . Recycling Unit Hacks 8 | . . . . . 1 2 4 . . . . . . . . . . . 1 . . Retrieve Components 8 | . . . . . 1 2 4 . . . . . . . . . . . 1 . . Scanalyzer 5 | . . . . . . 5 . . . . . . . . . . . . . . . Insert Component 3 | . . . . . . 3 . . . . . . . . . . . . . . . Analyze 2 | . . . . . . 2 . . . . . . . . . . . . . . . Garrison Access Hacks 4 | . . . . . . 1 2 . . . . . . . . . . . . 1 . Seal Access 4 | . . . . . . 1 2 . . . . . . . . . . . . 1 . Unauthorized Hacks 13 | . 5 . . . 3 3 2 . . . . . . . . . . . . . . Terminals 13 | . 5 . . . 3 3 2 . . . . . . . . . . . . . . Track 5 | . 3 . . . . 2 . . . . . . . . . . . . . . . Botnet 8 | . 2 . . . 3 1 2 . . . . . . . . . . . . . . Fabricators . | . . . . . . . . . . . . . . . . . . . . . . Repair Stations . | . . . . . . . . . . . . . . . . . . . . . . Recycling Units . | . . . . . . . . . . . . . . . . . . . . . . Scanalyzers . | . . . . . . . . . . . . . . . . . . . . . . Garrison Access . | . . . . . . . . . . . . . . . . . . . . . . Data Cores Recovered 1 | . . . . . . . 1 . . . . . . . . . . . . . . Used 1 | . . . . . . . 1 . . . . . . . . . . . . . . Hacking Detections 41 | . 4 . . . 2 12 14 . . . . 1 . . . . 1 1 . 1 5 Full Trace Events 6 | . . . . . . . 3 . . . . . . . . . 1 1 . . 1 Feedback Events 1 | . . . . . . . . . . . . . . . . . . 1 . . . Corruption 1 | . . . . . . . . . . . . . . . . . . 1 . . . Feedback Blocked . | . . . . . . . . . . . . . . . . . . . . . . Robot Schematics Acquired 4 | . . . . . . . . . . 4 . . . . . . . . . . . Robots Built 3 | . . . . . . 3 . . . . . . . . . . . . . . . Matter 186 | . . . . . . 186 . . . . . . . . . . . . . . . Time 49 | . . . . . . 49 . . . . . . . . . . . . . . . Total Robot Build Rating 6 | . . . . . . 6 . . . . . . . . . . . . . . . Part Schematics Acquired 7 | . . . . . . 2 . . . 5 . . . . . . . . . . . Parts Built 7 | . . . . . . 5 2 . . . . . . . . . . . . . . Matter 870 | . . . . . . 658 212 . . . . . . . . . . . . . . Time 270 | . . . . . . 164 106 . . . . . . . . . . . . . . Total Part Build Rating 43 | . . . . . . 31 12 . . . . . . . . . . . . . . Parts Repaired . | . . . . . . . . . . . . . . . . . . . . . . Time . | . . . . . . . . . . . . . . . . . . . . . . Parts Recycled . | . . . . . . . . . . . . . . . . . . . . . . Recycled Matter . | . . . . . . . . . . . . . . . . . . . . . . Retrieved Matter . | . . . . . . . . . . . . . . . . . . . . . . Retrieved Components 17 | . . . . . 1 5 8 . . . . . . . . . . . 3 . . Parts Scanalyzed 2 | . . . . . . 2 . . . . . . . . . . . . . . . Part Schematics Acquired 2 | . . . . . . 2 . . . . . . . . . . . . . . . Parts Damaged . | . . . . . . . . . . . . . . . . . . . . . . Bothacking | -11 -10 -10 -10 -9 -8 -7 -6 -6 -6 -6 -5 -5 -5 -5 -5 -4 -4 -3 -2 -1 -1 ------------ Run | Scr Mat Min Exi Min Mat Fac Fac Low Low Dat Pro Fac Upp Upp War Pro Fac Res Res Acc Com Used RIF Installer . | . . . . . . . . . . . . . . . . . . . . . . Robots Hacked 3 | . . . . . . . . . . . . . . . . . . . 2 . 1 Non-combat . | . . . . . . . . . . . . . . . . . . . . . . Combat 3 | . . . . . . . . . . . . . . . . . . . 2 . 1 Robot Hacks Applied 3 | . . . . . . . . . . . . . . . . . . . 2 . 1 parse_system 3 | . . . . . . . . . . . . . . . . . . . 2 . 1 Relay Couplers Released 5 | . . . . . . 3 . . . . . . . . . . . . 2 . . Machine Destruction 2 | . . . . . . . . . . . . . . . . . . . 2 . . Programmers 3 | . . . . . . 3 . . . . . . . . . . . . . . . Robots Rewired . | . . . . . . . . . . . . . . . . . . . . . . Allies Hacked . | . . . . . . . . . . . . . . . . . . . . . . Hacks Repelled . | . . . . . . . . . . . . . . . . . . . . . . Allies | -11 -10 -10 -10 -9 -8 -7 -6 -6 -6 -6 -5 -5 -5 -5 -5 -4 -4 -3 -2 -1 -1 -------- Run | Scr Mat Min Exi Min Mat Fac Fac Low Low Dat Pro Fac Upp Upp War Pro Fac Res Res Acc Com Total Allies 4 | . . . . . . 3 . . . . 1 . . . . . . . . . . Largest Group 3 | . . . . . . 3 . . . . 1 1 1 1 . . . . . . . Highest-Rated Group 94 | . . . . . . 54 . . . . 94 94 94 94 . . . . . . . Highest-Rated Ally 94 | . . . . . . 18 . . . . 94 94 94 94 . . . . . . . Total Orders . | . . . . . . . . . . . . . . . . . . . . . . Ally Attacks 40 | . . . . . . 16 . . . . 2 . 18 4 . . . . . . . Total Damage 1134 | . . . . . . 381 . . . . . . 609 144 . . . . . . . Kills 6 | . . . . . . 3 . . . . . . 2 1 . . . . . . . Allies Corrupted 2 | . . . . . . 1 . . . . . . . 1 . . . . . . . Allies Melted . | . . . . . . . . . . . . . . . . . . . . . . Intel | -11 -10 -10 -10 -9 -8 -7 -6 -6 -6 -6 -5 -5 -5 -5 -5 -4 -4 -3 -2 -1 -1 ------- Run | Scr Mat Min Exi Min Mat Fac Fac Low Low Dat Pro Fac Upp Upp War Pro Fac Res Res Acc Com Robot Analysis Total . | . . . . . . . . . . . . . . . . . . . . . . Derelict Logs Recovered 4 | . . 2 . . . . . . . . . . 2 . . . . . . . . Drone Launches . | . . . . . . . . . . . . . . . . . . . . . . Drone Recoveries . | . . . . . . . . . . . . . . . . . . . . . . Exploration | -11 -10 -10 -10 -9 -8 -7 -6 -6 -6 -6 -5 -5 -5 -5 -5 -4 -4 -3 -2 -1 -1 ------------- Run | Scr Mat Min Exi Min Mat Fac Fac Low Low Dat Pro Fac Upp Upp War Pro Fac Res Res Acc Com Turns Passed 12472 | 78 558 840 284 144 700 1702 1238 160 167 29 139 162 345 212 436 83 319 365 1081 1955 1475 Spaces Moved 15744 | 53 302 542 234 119 643 2276 2048 348 432 79 250 221 406 297 909 198 426 492 1752 2050 1667 Core 466 | 1 . . . . . . . . . . . . . . . . . . . . 465 Treads . | . . . . . . . . . . . . . . . . . . . . . . Legs 1249 | 52 302 542 234 119 . . . . . . . . . . . . . . . . . Wheels . | . . . . . . . . . . . . . . . . . . . . . . Hover 4728 | . . . . . . . . . . . . . . . . . . . 1476 2050 1202 Flight 9301 | . . . . . 643 2276 2048 348 432 79 250 221 406 297 909 198 426 492 276 . . Fastest Speed 35 | 50 120 120 120 120 50 42 37 37 37 37 37 37 42 37 37 37 37 37 35 48 43 Average Speed 52 | 118 120 120 120 120 50 43 44 37 37 37 37 37 42 39 37 37 37 37 51 53 58 Slowest Speed 314 | 120 120 120 120 120 50 50 50 37 37 37 50 42 42 42 132 37 37 123 314 114 123 Overloaded Moves . | . . . . . . . . . . . . . . . . . . . . . . Propulsion Burnouts . | . . . . . . . . . . . . . . . . . . . . . . Robots Hopped 67 | . . . . . 7 13 21 . 5 . . . 1 2 6 . . 7 5 . . Cave-ins Triggered 2 | . . . . . . . . . . . . . . . . . . 1 . . 1 Exploration Rate (%) 46 | 4 44 86 61 28 35 53 51 65 72 68 52 8 60 49 91 49 18 18 34 46 33 Regions Visited 21 Branch Regions 12 Pre-discovered Areas 3 | . . 1 . . . . . . . 1 . . 1 . . . . . . . . Known Exits Taken 10 | . . . . . . . 1 . . . . 1 1 1 1 1 1 1 1 1 . Unknown Exits Taken 11 | 1 1 1 1 1 1 1 . 1 1 1 1 . . . . . . . . . . Scrap Searched 15 | . . 2 . . . . . 2 2 . . . 5 2 . 2 . . . . . Spaces Dug 154 | . . 6 . . 9 19 11 19 . . . . . . 2 . 15 20 10 35 8 Terrain Destroyed 437 | . . 8 . . 9 39 12 55 8 . 27 . 1 2 4 . 132 50 14 59 17 Melee 36 | . . . . . 9 2 3 . . . . . . . . . . 3 . 11 8 Projectile 163 | . . 8 . . . 37 9 1 . . . . 1 2 4 . 19 20 14 48 . AOE 238 | . . . . . . . . 54 8 . 27 . . . . . 113 27 . . 9 Terrain Rammed 1 | . . . . . . . . . . . . . . . . . . . . . 1 Walls Destroyed . | . . . . . . . . . . . . . . . . . . . . . . Machines Disabled . | . . . . . . . . . . . . . . . . . . . . . . Actions | -11 -10 -10 -10 -9 -8 -7 -6 -6 -6 -6 -5 -5 -5 -5 -5 -4 -4 -3 -2 -1 -1 --------- Run | Scr Mat Min Exi Min Mat Fac Fac Low Low Dat Pro Fac Upp Upp War Pro Fac Res Res Acc Com Total 18985 | 65 445 646 238 120 924 2832 2289 362 431 78 291 290 560 373 976 207 543 591 1900 2744 2080 Wait 2288 | 3 102 45 . 2 218 423 158 2 3 . 39 51 135 49 9 8 76 13 85 544 323 Move 15596 | 52 301 541 233 118 629 2249 2007 347 423 78 249 220 403 292 897 197 425 478 1741 2049 1667 Hop 59 | . . . . . 6 13 19 . 3 . . . 1 2 5 . . 5 5 . . Pick Up 104 | 4 6 . 2 . 8 16 22 . . . . 3 3 3 7 . 3 6 8 11 2 Fast Attach 78 | 6 1 4 . . 4 9 8 . . . . 1 . 5 9 1 2 . 6 12 10 Attach 62 | . 2 2 1 . 2 2 6 . . . 1 2 1 1 2 . 2 10 4 9 15 Detach 31 | . 1 . . . . 1 5 . . . . 1 . 1 3 1 1 4 8 1 4 Swap 43 | . . 3 . . 2 8 5 3 1 . . 4 3 2 2 . 2 4 . 4 . Drop 101 | . 3 2 2 . 8 20 16 . . . . 1 1 7 18 . 1 4 12 6 . Fire 511 | . 29 48 . . 20 89 39 10 1 . 2 7 13 11 24 . 31 61 31 66 29 Melee 107 | . . . . . 27 2 4 . . . . . . . . . . 3 . 41 30 Ram 3 | . . . . . . . . . . . . . . . . . . 2 . 1 . Kick 1 | . . 1 . . . . . . . . . . . . . . . . . . . Crush . | . . . . . . . . . . . . . . . . . . . . . . Escape Stasis 1 | . . . . . . . . . . . . . . . . . . 1 . . . Rewire . | . . . . . . . . . . . . . . . . . . . . . . Trap . | . . . . . . . . . . . . . . . . . . . . . . Miscellaneous . | . . . . . . . . . . . . . . . . . . . . . . Route ------- -11/Scrapyard -10/Materials (discovered 2 exits: [*Mat] / [*Min]) -10/Mines (discovered 3 exits: [*Mat x2] / *Exi) -10/Exiles -9/Mines -8/Materials -7/Factory (discovered 4 exits: *Fac / [*Sto] / [*Low x2]) -6/Factory (discovered 4 exits: *Low x2 / *Ext x2) -6/Lower Caves -6/Lower Caves -6/Data Miner -5/Proximity Caves -5/Factory -5/Upper Caves -5/Upper Caves -5/Warlord -4/Proximity Caves -4/Factory (discovered 4 exits: *Res x4) -3/Research -2/Research (discovered 3 exits: *Acc / *Tes x2) -1/Access -1/Command History --------- Turn | Location | Event 12 | -11/Scrapyard | Discovered new exit (range 15) 79 | -11/Scrapyard | Entered Materials 317 | -10/Materials | Build established: Mutant 387 | -10/Materials | Discovered new exit (range 9) 491 | -10/Materials | Discovered new exit (range 16) 637 | -10/Materials | Entered Mines 652 | -10/Mines | Core integrity fell below 50% 873 | -10/Mines | Assembled infested the area 1176 | -10/Mines | Discovered new exit (range 6) 1178 | -10/Mines | Lost 3 parts (1p2w) 1196 | -10/Mines | Learned location of Zion (-7) 1297 | -10/Mines | Discovered new exit (range 3) 1441 | -10/Mines | Learned Materials stockpile data 1471 | -10/Mines | Deemed a non-threat by the Exiles lab entrance 1472 | -10/Mines | Discovered new exit (range 5) 1477 | -10/Mines | Entered Exiles 1508 | -10/Exiles | Met 8R-AWN 1528 | -10/Exiles | Met EX-HEX 1530 | -10/Exiles | Build established: Scavenger-Mutant 1560 | -10/Exiles | Met EX-BIN 1574 | -10/Exiles | Aligned with FarCom system 1576 | -10/Exiles | Given EX-Vault access code 1604 | -10/Exiles | Opened EX-Vault 1615 | -10/Exiles | Found Flying Fortress v7 1642 | -10/Exiles | Warned to stay clear of 0b10 Research branches 1678 | -10/Exiles | Met EX-DEC 1721 | -10/Exiles | Discovered new exit (range 10) 1761 | -10/Exiles | Left Exiles lab with Flying Fortress v7 1761 | -10/Exiles | Entered Mines 1766 | -9/Mines | Met a Derelict bent on vengeance 1895 | -9/Mines | Discovered new exit (range 8) 1905 | -9/Mines | Entered Materials 1905 | -8/Materials | Evolved 4 slots: Propulsion x2, Utility x1, Weapon x1 2211 | -8/Materials | Build established: Mutant 2522 | -8/Materials | Discovered new exit (range 14) 2605 | -8/Materials | Entered Factory 2605 | -7/Factory | Evolved 2 slots: Propulsion x1, Utility x1 2642 | -7/Factory | Discovered new exit (range 9) 2674 | -7/Factory | Discovered new exit (range 5) 2947 | -7/Factory | Fabricated Mic. Fission Core (x2) 3290 | -7/Factory | Discovered new exit (range 16) 3338 | -7/Factory | Fabricated Neutron Cannon (x2) 3353 | -7/Factory | Fabricated L-31 Rogue? 3642 | -7/Factory | Discovered new exit (range 13) 3911 | -7/Factory | Fabricated Adv. Target Analyzer (x1) 3912 | -7/Factory | Local fabrication network quarantined 4205 | -7/Factory | First assault squad dispatched 4307 | -7/Factory | Entered another Factory area 4307 | -6/Factory | Evolved 2 slots: Propulsion x1, Utility x1 4547 | -6/Factory | Fabricated Neutrino Core? 4945 | -6/Factory | Identified exit to Lower Caves 4945 | -6/Factory | Identified exit to Extension 5502 | -6/Factory | Spotted B-75 Beast 5503 | -6/Factory | Found Prototype Processor 5536 | -6/Factory | Identified Exp. Signal Interpreter 5545 | -6/Factory | Entered Lower Caves 5701 | -6/Lower Caves | Discovered new exit (range 11) 5705 | -6/Lower Caves | Entered another Lower Caves area 5869 | -6/Lower Caves | Discovered new exit (range 6) 5872 | -6/Lower Caves | Entered Data Miner 5872 | -6/Data Miner | Discovered new exit (range 6) 5880 | -6/Data Miner | Met Data Miner 5886 | -6/Data Miner | Learned location of Section 7 (-2) 5886 | -6/Data Miner | Acquired the access code to Warlord's prototype stash 5892 | -6/Data Miner | Received God Mode back door access code from Data Miner 5901 | -6/Data Miner | Entered Proximity Caves 5977 | -5/Proximity Caves | Escorted by Enhanced Grunt 6019 | -5/Proximity Caves | Discovered new exit (range 12) 6040 | -5/Proximity Caves | Entered Factory 6040 | -5/Factory | Accompanied by 1 ally 6040 | -5/Factory | Evolved 2 slots: Power x1, Utility x1 6181 | -5/Factory | Discovered new exit (range 15) 6187 | -5/Factory | Identified exit to Upper Caves 6202 | -5/Factory | Entered Upper Caves 6202 | -5/Upper Caves | Accompanied by 1 ally 6257 | -5/Upper Caves | Identified exit to Upper Caves 6506 | -5/Upper Caves | Learned location of Armory (-3) 6525 | -5/Upper Caves | Attracted the attention of an 0b10 checkpoint 6547 | -5/Upper Caves | Entered another Upper Caves area 6547 | -5/Upper Caves | Accompanied by 1 ally 6723 | -5/Upper Caves | Encountered a Warlord checkpoint 6756 | -5/Upper Caves | Discovered new exit (range 8) 6759 | -5/Upper Caves | Identified exit to Warlord 6759 | -5/Upper Caves | Entered Warlord 6772 | -5/Warlord | System corruption cleaned by Quarantine Array 6955 | -5/Warlord | Visited the Vortex Lab 6958 | -5/Warlord | Found Prototype Piercing Weapon 6958 | -5/Warlord | Identified Vortex Lance 6963 | -5/Warlord | Found Prototype Energy Gun 6963 | -5/Warlord | Identified Vortex Rifle 6965 | -5/Warlord | Found Vortex Rifle 6974 | -5/Warlord | Warlord's base attacked by MAIN.C 7013 | -5/Warlord | Met Warlord 7018 | -5/Warlord | Opened Warlord's prototype stash 7020 | -5/Warlord | Found Prototype Reactor 7020 | -5/Warlord | Identified Vortex Chain Reactor 7040 | -5/Warlord | Found Prototype Hackware 7044 | -5/Warlord | Found Prototype Processor 7044 | -5/Warlord | Identified Spectral Analyzer 7048 | -5/Warlord | Found Prototype Device 7192 | -5/Warlord | Discovered new exit (range 9) 7195 | -5/Warlord | Identified exit to Proximity Caves 7195 | -5/Warlord | Entered Proximity Caves 7228 | -4/Proximity Caves | Spotted B-86 Titan 7275 | -4/Proximity Caves | Discovered new exit (range 10) 7278 | -4/Proximity Caves | Identified exit to Factory 7278 | -4/Proximity Caves | Entered Factory 7278 | -4/Factory | Evolved 2 slots: Utility x2 7278 | -4/Factory | Identified Exp. Focal Shield 7367 | -4/Factory | Found Prototype Launcher 7367 | -4/Factory | Identified Mni. Smartbomb Launcher 7370 | -4/Factory | Found Mni. Smartbomb Launcher 7458 | -4/Factory | Identified Ghost Barrier 7459 | -4/Factory | Identified exit to Research 7476 | -4/Factory | Incoming investigation squad redirected 7594 | -4/Factory | Build established: Hacker-Mutant 7597 | -4/Factory | Entered Research 7597 | -3/Research | Spotted B-86 Titan 7597 | -3/Research | Evolved 2 slots: Utility x2 7652 | -3/Research | Incoming investigation squad redirected 7842 | -3/Research | Crushed by falling debris 7871 | -3/Research | Spotted B-86 Titan 7880 | -3/Research | Discovered new exit (range 20) 7962 | -3/Research | Identified exit to Research 7962 | -3/Research | Entered another Research area 7962 | -2/Research | Warlord forces began assault on 0b10 7962 | -2/Research | Evolved 2 slots: Utility x2 8072 | -2/Research | Research machine network offline 8110 | -2/Research | Met up with Warlord 8275 | -2/Research | Found Gamma Bomb Array 8330 | -2/Research | Borebot progress halted 8398 | -2/Research | Discovered new exit (range 21) 8409 | -2/Research | Identified exit to Testing 8412 | -2/Research | Borebot progress halted 8432 | -2/Research | Spotted Striker 8448 | -2/Research | Spotted B-90 Cyclops 8540 | -2/Research | Discovered new exit (range 6) 8543 | -2/Research | Identified exit to Access 8964 | -2/Research | Warlord invited to help at Command 9043 | -2/Research | Discovered exit to Testing (range 15) 9043 | -2/Research | Entered Access 9043 | -1/Access | Evolved 2 slots: Propulsion x1, Utility x1 9149 | -1/Access | Found Enh. Force Lance 9279 | -1/Access | Found Antimissile System 9498 | -1/Access | Spotted B-99 Colossus 9515 | -1/Access | Spotted B-99 Colossus 9725 | -1/Access | Incoming investigation squad redirected 9814 | -1/Access | Spotted B-99 Colossus 10166 | -1/Access | System corruption reached 10% 10240 | -1/Access | Lost 4 parts (3u1w) 10801 | -1/Access | System corruption reached 30% 10850 | -1/Access | Lost 9 parts (2p2n3u2w) 10995 | -1/Access | Discovered new exit (range 7) 10998 | -1/Access | Identified exit to Command 10998 | -1/Access | Entered Command 11185 | -1/Command | Build established: Scavenger-Mutant 11227 | -1/Command | Disengaged cave seal 11227 | -1/Command | Derelicts emerged from the dark tunnel 11228 | -1/Command | Welcomed Warlord to Command 11523 | -1/Command | Spotted M Guard 11523 | -1/Command | Spotted Combat Programmer 11531 | -1/Command | Warlord commented on Warlord statues 11551 | -1/Command | Spotted M Guard 11551 | -1/Command | Spotted Combat Programmer 11588 | -1/Command | Core integrity fell below 50% 11623 | -1/Command | Lost 19 parts (3p5n5u6w) 11636 | -1/Command | Destroyed M Guard 11647 | -1/Command | Destroyed M Guard 11647 | -1/Command | All MAIN.C guards destroyed 11702 | -1/Command | Met MAIN.C 11710 | -1/Command | Warlord shut down involuntarily 11814 | -1/Command | Core integrity fell below 20% 11841 | -1/Command | Lost 4 parts (1p1n2u) 11856 | -1/Command | Build established: Hacker-Mutant 11873 | -1/Command | Found Prototype Device 11873 | -1/Command | Identified Adv. Kinecellerator 12221 | -1/Command | Crushed by falling debris 12223 | -1/Command | Disengaged cave seal 12252 | -1/Command | Lost 7 parts (1p2n3u1w) 12290 | -1/Command | P-80 Master assimilated allied J3-1YL(L) 12297 | -1/Command | Spotted J3-1YL(L) 12395 | -1/Command | Incoming investigation squad redirected 12439 | -1/Command | Spotted Striker 12439 | -1/Command | Spotted Executioner 12440 | -1/Command | Spotted Executioner 12442 | -1/Command | Spotted Alpha 7 12473 | -1/Command | Core destroyed Last Messages --------------- 12359_ System corrupted: Matter fused (-6). 12370_ Connecting with Recycling Unit... 12370_ ALERT: Suspicious activity at Recycling Unit C002. Dispatching Investigation squad. 12377_ NIO7ZIGL&XI7, FMAKCGCPF 12392_ System corrupted: Matter fused (-5). 12394_ Acquired 11 matter. 12395_ ALERT: Higher priority target reported, redirecting investigation. 12408_ System corrupted: Matter fused (-5). 12423_ Acquired 5 matter. 12426_ System corrupted: Component data lost. 12436_ K-01 Serf collects debris. 12441_ System corrupted: IFF burst signal emitted. 12441_ Field strength at 36. 12442_ K-01 Serf collects debris. 12458_ IEZD/GFXQBLK7Y30XIX64GZ%4%EOJUSZATDWVP 12460_ Penetrated by Slug. 12464_ Slug penetrates Wall. 12464_ Penetrated by Slug. 12473_ Slammed into Wall. Map ----- +----------------------------------------------------+ | ?????????????????# +????????????? | | ?????????????????# #????????????# | | ?????????????????# = #???????????? | | ?????????????????# #???????????# | | ?????????????????# #????????????" | | ?????????????????# #??##########" | | ?????????????????# #??# == #" | | ?????????????????# """"T"""" #??# == #T | | ?????????????????# """"""""""" ?#??# = #" | | ?????????????????##### ##### # ######### #" | | ????????????????????# ## # #" | | ????????????????????# ## # # | | ????????????????????# """" ## # # | | ????????????????????# """" ## #? # | | ????????????????????# m"""" #?? ????? ?? | | ????????????????????# """" #####+#########+#### | | ????????????????????# + % % | | ????????????????????# # | | ????????????????????# "" # ######### | | ????????????????????# "" # ######### | | ????????????????????# "" # # # | | ????????????????????# T" # # # | | ????????????????????# """ # # # | | ????????????????????# "" ; # # | | ????????????????????# # # | | ????????????????????# @ # # | | ?#######????????????###########=[ # | | ### # ##????????????# #=!# # | | ## # ###??????????#! # !# # ! % | | ## ### # ########???# !# # =%! | | # # # ## #???# #[ # + * | | ## ## # # ##########+### ######## | | / [ = #= | | / [ *% | | / E % # [ | | / = E7 +!=[!%! | | /*% # #%[]!% | | # ### # # ##### ##### #!!!%#### | | # ## #???# #???# #=%%/#### | | ##################???# ##???# #*[%%## | | ?????????????????????# #????# #=%!=## | | ?????????????????????# #????####= #%%==## | | ?????????????????????#"" #########%*[!=*!%# | | ?????????????????????# !%==%%=%=## | | ?????????????????????#" *%*%%=!*%!=# | | ?????????????????????#T * !!!%![!%[## | | ?????????????????????# = [ = !%=%%%## | | ?????????????????????#" = ############!!*|## | | ?????????????????????# " #??????????#*[=!#### | | ?????????????????????# #?????????? + //#??? | +----------------------------------------------------+ Best States ------------- Heat Dissipation 83 Energy Generation 55 Energy Capacity 700 Matter Stores 300 Matter Capacity 300 Sight Range 24 Terrain Scan Density 10 Jamming Range 8 Armor Coverage 825 Resistance: KI 30 Resistance: EM 25 Propulsion Shielding 66 Point Defense Rating 240 Evasion (%) 72 Targeting Accuracy 14 Target Analysis 8 Offensive Hacking 23 Defensive Hacking 20 Item Schematics ----------------- Xenon Bombardment Thruster | -7/Factory | Scanalyzed Shock Bomb Launcher | -7/Factory | Scanalyzed Combat Drone Bay | -6/Data Miner | Free Lgt. Regenerative Plating | -6/Data Miner | Free Exp. Flexi-carbon Leg | -6/Data Miner | Free Cmb. Gravmag System | -6/Data Miner | Free Exp. Terrain Scan Processor | -6/Data Miner | Free Robot Schematics ------------------ S-27 Virus | -6/Data Miner | Free G-50 Soldier | -6/Data Miner | Free H-66 Slayer | -6/Data Miner | Free I-36 Angel | -6/Data Miner | Free Fabricated ------------ Mic. Fission Core | x2 | -7/Factory | Preloaded Neutron Cannon | x2 | -7/Factory | Preloaded L-31 Rogue | x3 | -7/Factory | Preloaded Adv. Target Analyzer | x1 | -7/Factory | Preloaded Neutrino Core | x2 | -6/Factory | Preloaded Alien Tech Used ----------------- None Achievements -------------- Corridor Of Doom Just Shoot The Terminal Meet Your Maker No Explosion For You Challenges ------------ None Game ------ Seed WardroneShrapnelReplicator Manual? 0 Play Time 02:32:30 Cumulative 229.1 hours Start 2021.05.18 @ 16:50:17 End 2021.05.18 @ 19:32:20 Sessions 1 Manual Loads 0 Difficulty Rogue Special Mode None Game No. 326 Rogue 322 Adventurer 0 Explorer 4 Win Type - Total 3 Types 3/0/0/0/0/0/0/0/0 Lore% 74 Gallery% 85 Achievement% 59 Wizard Run 0 Options --------- ASCII 1 Keyboard 1 Movement Numpad Keybinds 0 Fullscreen 2 Font 18/X11 Map View 76x50 Tactical HUD 1 Map Filters NONE Filters NONE Steam 1 RUN: 8b4e0bbe-0149-49f3-b7cf-88e679f7e336